Workbook

Sheet Лист1
A1: Школа | C1: МБОУ "Лицей №2" | F1: Согласовал: | G1: должность | H1: Директор
A2: Типовое примерное меню приготавливаемых блюд | G2: фамилия | H2: Зелинский Руслан Владимирович
A3: Возрастная категория | E3: 7-11 лет | G3: дата | H3: 2 | I3: 9 | J3: 2024
H4: день | I4: месяц | J4: год
A5: Неделя | B5: День недели | C5: Прием пищи | D5: Раздел меню | E5: Блюда | F5: Вес блюда, г | G5: Белки | H5: Жиры | I5: Углеводы | J5: Калорийность | K5: № рецептуры | L5: Цена
A6: 1 | B6: 1 | C6: Завтрак | D6: гор.блюдо | E6: Каша молочная "Дружба" с маслом | F6: 160 | G6: 5.6 | H6: 7.6 | I6: 29.5 | J6: 209 | K6: 311
D7: хлеб | E7: Хлеб ржаной (ржано-пшеничный) | F7: 30 | G7: 1.98 | H7: 0.33 | I7: 12.3 | J7: 62 | K7: 1
D8: хлеб | E8: Хлеб пшеничный | F8: 30 | G8: 2.25 | H8: 0.87 | I8: 14.76 | J8: 75 | K8: 376
D9: гор.напиток | E9: Чай с лимоном и сахаром | F9: 217 | G9: 0.1 | H9: 0 | I9: 9.47 | J9: 37 | K9: 686
D10: выпечка | E10: Булочка домашняя | F10: 80 | G10: 5.84 | H10: 5.84 | I10: 44.32 | J10: 286.4 | K10: 769
D12: итого | F12: =SUM(F6:F11) -> 517 | G12: =SUM(G6:G11) -> 15.77 | H12: =SUM(H6:H11) -> 14.64 | I12: =SUM(I6:I11) -> 110.35 | J12: =SUM(J6:J11) -> 669.4 | L12: 66.76
A13: =A6 -> 1 | B13: =B6 -> 1 | C13: Обед | D13: закуска
D14: 1 блюдо
D15: 2 блюдо
D16: гарнир
D17: напиток
D18: хлеб бел.
D19: хлеб черн.
D22: итого | F22: =SUM(F13:F21) -> 0 | G22: =SUM(G13:G21) -> 0 | H22: 0 | I22: 0 | J22: 0 | L22: =SUM(L13:L21) -> 0
A23: =A6 -> 1 | B23: =B6 -> 1 | C23: Итого за день: | F23: =F12+F22 -> 517 | G23: =G12+G22 -> 15.77 | H23: 14.64 | I23: 110.35 | J23: 669.4 | L23: =L12+L22 -> 66.76
A24: 1 | B24: 2 | C24: Завтрак | D24: гор.блюдо | E24: Сосиски (халяль) отварные с маслом | F24: 110 | G24: 10 | H24: 21.7 | I24: 0.8 | J24: 238 | K24: 413
D25: хлеб | E25: Хлеб пшеничный | F25: 30 | G25: 2.25 | H25: 0.87 | I25: 15 | J25: 75 | K25: 1
D26: хлеб | E26: Хлеб ржаной (ржано-пшеничный) | F26: 30 | G26: 1.98 | H26: 0.33 | I26: 12.3 | J26: 62
D27: гор.напиток | E27: Компот из кураги | F27: 200 | G27: 1.3 | H27: 0.1 | I27: 32.4 | J27: 130 | K27: 638
D28: гарнир | E28: Гарнир гречневый | F28: 155 | G28: 8.7 | H28: 5.7 | I28: 37.8 | J28: 240 | K28: 297
D31: итого | F31: =SUM(F24:F30) -> 525 | G31: =SUM(G24:G30) -> 24.23 | H31: 28.7 | I31: 98.3 | J31: 745 | L31: 66.76
A32: =A24 -> 1 | B32: =B24 -> 2 | C32: Обед | D32: закуска
D33: 1 блюдо
D34: 2 блюдо
D35: гарнир
D36: напиток
D37: хлеб бел.
D38: хлеб черн.
D41: итого | F41: =SUM(F32:F40) -> 0 | G41: =SUM(G32:G40) -> 0 | H41: 0 | I41: 0 | J41: 0 | L41: 0
A42: =A24 -> 1 | B42: =B24 -> 2 | C42: Итого за день: | F42: =F31+F41 -> 525 | G42: =G31+G41 -> 24.23 | H42: 28.7 | I42: 98.3 | J42: 745 | L42: 66.76
A43: 1 | B43: 3 | C43: Завтрак | D43: гор.блюдо | E43: Горбуша, тушенная в томате с овощами | F43: 120 | G43: 23.2 | H43: 11.6 | I43: 4.7 | J43: 216 | K43: 374
D44: гор.блюдо | E44: Гарнир рисовый | F44: 155 | G44: 3.58 | H44: 3.92 | I44: 36.8 | J44: 200 | K44: 297
D45: хлеб | E45: Хлеб пшеничный | F45: 30 | G45: 2.25 | H45: 0.87 | I45: 15 | J45: 75 | K45: 1
D46: хлеб | E46: Хлеб ржаной (ржано-пшеничный) | F46: 30 | G46: 1.98 | H46: 0.33 | I46: 12.3 | J46: 62
D47: гор.напиток | E47: Горячий шоколад | F47: 200 | G47: 3.3 | H47: 3.1 | I47: 13.6 | J47: 94 | K47: 693
D50: итого | F50: =SUM(F43:F49) -> 535 | G50: =SUM(G43:G49) -> 34.31 | H50: 19.82 | I50: 82.4 | J50: 647 | L50: 66.76
A51: =A43 -> 1 | B51: =B43 -> 3 | C51: Обед | D51: закуска
D52: 1 блюдо
D53: 2 блюдо
D54: гарнир
D55: напиток
D56: хлеб бел.
D57: хлеб черн.
D60: итого | F60: =SUM(F51:F59) -> 0 | G60: =SUM(G51:G59) -> 0 | H60: 0 | I60: 0 | J60: 0 | L60: 0
A61: =A43 -> 1 | B61: =B43 -> 3 | C61: Итого за день: | F61: =F50+F60 -> 535 | G61: =G50+G60 -> 34.31 | H61: 19.82 | I61: 82.4 | J61: 647 | L61: 66.76
A62: 1 | B62: 4 | C62: Завтрак | D62: гор.блюдо | E62: Ёжики из говядины с рисом в соусе том. | F62: 120 | G62: 11.4 | H62: 16.2 | I62: 13.4 | J62: 246 | K62: 462
D63: гор.блюдо | E63: Макаронные изделия отварные | F63: 155 | G63: 5.5 | H63: 3.92 | I63: 32.83 | J63: 192 | K63: 332
D64: хлеб | E64: Хлеб пшеничный | F64: 30 | G64: 2.25 | H64: 0.87 | I64: 15 | J64: 75 | K64: 1
D65: хлеб | E65: Хлеб ржаной (ржано-пшеничный) | F65: 30 | G65: 1.98 | H65: 0.33 | I65: 12.3 | J65: 62
D66: гор.напиток | E66: Компот из смеси сухофруктов | F66: 200 | G66: 0.5 | H66: 0.1 | I66: 31.2 | J66: 121 | K66: 639
D69: итого | F69: =SUM(F62:F68) -> 535 | G69: =SUM(G62:G68) -> 21.63 | H69: 21.42 | I69: 104.73 | J69: 696 | L69: 66.76
A70: =A62 -> 1 | B70: =B62 -> 4 | C70: Обед | D70: закуска
D71: 1 блюдо
D72: 2 блюдо
D73: гарнир
D74: напиток
D75: хлеб бел.
D76: хлеб черн.
D79: итого | F79: =SUM(F70:F78) -> 0 | G79: =SUM(G70:G78) -> 0 | H79: 0 | I79: 0 | J79: 0 | L79: 0
A80: =A62 -> 1 | B80: =B62 -> 4 | C80: Итого за день: | F80: =F69+F79 -> 535 | G80: =G69+G79 -> 21.63 | H80: 21.42 | I80: 104.73 | J80: 696 | L80: 66.76
A81: 1 | B81: 5 | C81: Завтрак | D81: гор.блюдо | E81: Каша манная молочная жидкая с маслом | F81: 160 | G81: 5.4 | H81: 7.2 | I81: 26.8 | J81: 194 | K81: 311
D82: хлеб | E82: Хлеб пшеничный | F82: 30 | G82: 2.25 | H82: 0.87 | I82: 15 | J82: 75 | K82: 1
D83: хлеб | E83: Хлеб ржаной (ржано-пшеничный) | F83: 30 | G83: 1.98 | H83: 0.33 | I83: 12.3 | J83: 62
D84: гор.напиток | E84: Кофейный напиток на молоке | F84: 200 | G84: 3.2 | H84: 2.8 | I84: 18.5 | J84: 109 | K84: 692
D85: закуска | E85: Сыр порциями | F85: 30 | G85: 6.96 | H85: 8.85 | I85: 0 | J85: 109.2 | K85: 2004
D86: закуска | E86: Яйцо вареное | F86: 50 | G86: 6.3 | H86: 5.3 | I86: 0.5 | J86: 78 | K86: 19555
D87: итого | F87: =SUM(F81:F86) -> 500 | G87: =SUM(G81:G86) -> 26.09 | H87: =SUM(H81:H86) -> 25.35 | I87: =SUM(I81:I86) -> 73.1 | J87: =SUM(J81:J86) -> 627.2 | L87: 66.76
A88: =A81 -> 1 | B88: =B81 -> 5 | C88: Обед | D88: закуска
D89: 1 блюдо
D90: 2 блюдо
D91: гарнир
D92: напиток
D93: хлеб бел.
D94: хлеб черн.
D97: итого | F97: =SUM(F88:F96) -> 0 | G97: =SUM(G88:G96) -> 0 | H97: 0 | I97: 0 | J97: 0 | L97: 0
A98: =A81 -> 1 | B98: =B81 -> 5 | C98: Итого за день: | F98: =F87+F97 -> 500 | G98: =G87+G97 -> 26.09 | H98: 25.35 | I98: 73.1 | J98: 627.2 | L98: 66.76
A99: 1 | B99: 6 | C99: Завтрак | D99: гор.блюдо | E99: Пельмени мясные отварные с бульоном | F99: 250 | G99: 27.9 | H99: 14.4 | I99: 53.5 | J99: 441 | K99: 1033
D100: хлеб | E100: Хлеб пшеничный | F100: 30 | G100: 2.25 | H100: 0.87 | I100: 15 | J100: 75 | K100: 1
D101: хлеб | E101: Хлеб ржаной (ржано-пшеничный) | F101: 30 | G101: 1.98 | H101: 0.33 | I101: 12.3 | J101: 62
D102: гор.напиток | E102: Компот из компотной смеси (заморож.яг) | F102: 200 | G102: 0.21 | H102: 0.04 | I102: 12.3 | J102: 73 | K102: 123
D105: итого | F105: =SUM(F99:F104) -> 510 | G105: =SUM(G99:G104) -> 32.34 | H105: =SUM(H99:H104) -> 15.64 | I105: =SUM(I99:I104) -> 93.1 | J105: =SUM(J99:J104) -> 651 | L105: 66.76
A106: =A99 -> 1 | B106: 6 | C106: Обед | D106: закуска
D107: 1 блюдо
D108: 2 блюдо
D109: гарнир
D110: напиток
D111: хлеб бел.
D112: хлеб черн.
D115: итого | F115: =SUM(F106:F114) -> 0 | G115: =SUM(G106:G114) -> 0 | H115: 0 | I115: 0 | J115: 0 | L115: =SUM(L106:L114) -> 0
A116: =A99 -> 1 | B116: =B99 -> 6 | C116: Итого за день: | F116: =F105+F115 -> 510 | G116: =G105+G115 -> 32.34 | H116: 15.64 | I116: 93.1 | J116: 651 | L116: 66.76
A117: 2 | B117: 1 | C117: Завтрак | D117: гор.блюдо | E117: Каша пшеничная молочная с маслом | F117: 160 | G117: 5.42 | H117: 6.08 | I117: 26.6 | J117: 178 | K117: 311
D118: хлеб | E118: Хлеб пшеничный | F118: 30 | G118: 2.25 | H118: 0.87 | I118: 15 | J118: 75 | K118: 1
D119: хлеб | E119: Хлеб ржаной (ржано-пшеничный) | F119: 30 | G119: 1.98 | H119: 0.33 | I119: 12.3 | J119: 62
D120: гор.напиток | E120: Чай с лимоном и сахаром | F120: 217 | G120: 0.1 | H120: 0 | I120: 9.3 | J120: 37 | K120: 686
D121: выпечка | E121: Ватрушка с творогом | F121: 80 | G121: 0.8 | H121: 4.8 | I121: 31 | J121: 209 | K121: 741
D124: итого | F124: =SUM(F117:F123) -> 517 | G124: =SUM(G117:G123) -> 10.55 | H124: 12.08 | I124: 94.2 | J124: 561 | L124: 66.76
A125: =A117 -> 2 | B125: =B117 -> 1 | C125: Обед | D125: закуска
D126: 1 блюдо
D127: 2 блюдо
D128: гарнир
D129: напиток
D130: хлеб бел.
D131: хлеб черн.
D134: итого | F134: =SUM(F125:F133) -> 0 | G134: =SUM(G125:G133) -> 0 | H134: 0 | I134: 0 | J134: 0 | L134: =SUM(L125:L133) -> 0
A135: =A117 -> 2 | B135: =B117 -> 1 | C135: Итого за день: | F135: =F124+F134 -> 517 | G135: =G124+G134 -> 10.55 | H135: 12.08 | I135: 94.2 | J135: 561 | L135: 66.76
A136: 2 | B136: 2 | C136: Завтрак | D136: гор.блюдо | E136: Сосиски (халяль) отварные с маслом | F136: 110 | G136: 10 | H136: 21.7 | I136: 0.8 | J136: 238 | K136: 413
D137: гор.блюдо | E137: Макаронные изделия отварные | F137: 155 | G137: 5.5 | H137: 3.92 | I137: 32.83 | J137: 192 | K137: 332
D138: хлеб | E138: Хлеб пшеничный | F138: 30 | G138: 2.25 | H138: 0.87 | I138: 15 | J138: 75 | K138: 1
D139: хлеб | E139: Хлеб ржаной (ржано-пшеничный) | F139: 30 | G139: 1.98 | H139: 0.33 | I139: 12.3 | J139: 62
D140: гор.напиток | E140: Напиток из плодов шиповника | F140: 200 | G140: 0.6 | H140: 0.2 | I140: 27 | J140: 111 | K140: 705
D143: итого | F143: =SUM(F136:F142) -> 525 | G143: =SUM(G136:G142) -> 20.33 | H143: 27.02 | I143: 87.93 | J143: 678 | L143: 66.76
A144: =A136 -> 2 | B144: 2 | C144: Обед | D144: закуска
D145: 1 блюдо
D146: 2 блюдо
D147: гарнир
D148: напиток
D149: хлеб бел.
D150: хлеб черн.
D153: итого | F153: =SUM(F144:F152) -> 0 | G153: =SUM(G144:G152) -> 0 | H153: 0 | I153: 0 | J153: 0 | L153: =SUM(L144:L152) -> 0
A154: =A136 -> 2 | B154: =B136 -> 2 | C154: Итого за день: | F154: =F143+F153 -> 525 | G154: =G143+G153 -> 20.33 | H154: 27.02 | I154: 87.93 | J154: 678 | L154: 66.76
A155: 2 | B155: 3 | C155: Завтрак | D155: гор.блюдо | E155: Горбуша, тушенная в томате с овощами | F155: 120 | G155: 23.2 | H155: 11.6 | I155: 4.7 | J155: 216 | K155: 374
D156: гор.блюдо | E156: Гарнир рисовый | F156: 155 | G156: 3.58 | H156: 3.92 | I156: 36.8 | J156: 200 | K156: 297
D157: хлеб | E157: Хлеб пшеничный | F157: 30 | G157: 2.25 | H157: 0.87 | I157: 15 | J157: 75 | K157: 1
D158: хлеб | E158: Хлеб ржаной (ржано-пшеничный) | F158: 30 | G158: 1.98 | H158: 0.33 | I158: 12.3 | J158: 62
D159: гор.напиток | E159: Компот из свежих фруктов | F159: 200 | G159: 0.2 | H159: 0.1 | I159: 17.2 | J159: 68 | K159: 631
D162: итого | F162: =SUM(F155:F161) -> 535 | G162: =SUM(G155:G161) -> 31.21 | H162: 16.82 | I162: 86 | J162: 621 | L162: 66.76
A163: =A155 -> 2 | B163: 3 | C163: Обед | D163: закуска
D164: 1 блюдо
D165: 2 блюдо
D166: гарнир
D167: напиток
D168: хлеб бел.
D169: хлеб черн.
D172: итого | F172: =SUM(F163:F171) -> 0 | G172: =SUM(G163:G171) -> 0 | H172: 0 | I172: 0 | J172: 0 | L172: =SUM(L163:L171) -> 0
A173: =A155 -> 2 | B173: =B155 -> 3 | C173: Итого за день: | F173: =F162+F172 -> 535 | G173: =G162+G172 -> 31.21 | H173: 16.82 | I173: 86 | J173: 621 | L173: 66.76
A174: 2 | B174: 4 | C174: Завтрак | D174: гор.блюдо | E174: Котлеты из мяса говядины с маслом | F174: 155 | G174: 20.6 | H174: 18.3 | I174: 17.5 | J174: 320 | K174: 451
D175: гор.блюдо | E175: Пюре гороховое | F175: 155 | G175: 14.7 | H175: 4.8 | I175: 34.7 | J175: 243 | K175: 107
D176: хлеб | E176: Хлеб пшеничный | F176: 30 | G176: 2.25 | H176: 0.87 | I176: 15 | J176: 75 | K176: 1
D177: хлеб | E177: Хлеб ржаной (ржано-пшеничный) | F177: 30 | G177: 1.98 | H177: 0.33 | I177: 12.3 | J177: 62
D178: гор.напиток | E178: Кисель | F178: 200 | G178: 0 | H178: 0 | I178: 20 | J178: 76 | K178: 648
D181: итого | F181: =SUM(F174:F180) -> 570 | G181: =SUM(G174:G180) -> 39.53 | H181: 24.3 | I181: 99.5 | J181: 776 | L181: 66.76
A182: =A174 -> 2 | B182: 4 | C182: Обед | D182: закуска
D183: 1 блюдо
D184: 2 блюдо
D185: гарнир
D186: напиток
D187: хлеб бел.
D188: хлеб черн.
D191: итого | F191: =SUM(F182:F190) -> 0 | G191: =SUM(G182:G190) -> 0 | H191: 0 | I191: 0 | J191: 0 | L191: =SUM(L182:L190) -> 0
A192: =A174 -> 2 | B192: =B174 -> 4 | C192: Итого за день: | F192: =F181+F191 -> 570 | G192: =G181+G191 -> 39.53 | H192: 24.3 | I192: 99.5 | J192: 776 | L192: 66.76
A193: 2 | B193: 5 | C193: Завтрак | D193: гор.блюдо | E193: Каша ячневая молочная с маслом | F193: 160 | G193: 5.22 | H193: 6 | I193: 26.82 | J193: 183 | K193: 302
D194: хлеб | E194: Хлеб пшеничный | F194: 30 | G194: 2.25 | H194: 0.87 | I194: 15 | J194: 75 | K194: 1
D195: хлеб | E195: Хлеб ржаной (ржано-пшеничный) | F195: 30 | G195: 1.98 | H195: 0.33 | I195: 12.3 | J195: 62
D196: гор.напиток | E196: Компот из кураги | F196: 200 | G196: 1.3 | H196: 0.1 | I196: 32.4 | J196: 130 | K196: 638
D197: закуска | E197: Сыр порциями | F197: 30 | G197: 6.96 | H197: 8.85 | I197: 0 | J197: 109.2 | K197: 2004
D198: закуска | E198: Яйцо вареное | F198: 50 | G198: 6.3 | H198: 5.3 | I198: 0.5 | J198: 78 | K198: 19555
D199: итого | F199: =SUM(F193:F198) -> 500 | G199: =SUM(G193:G198) -> 24.01 | H199: =SUM(H193:H198) -> 21.45 | I199: =SUM(I193:I198) -> 87.02 | J199: =SUM(J193:J198) -> 637.2 | L199: 66.76
A200: =A193 -> 2 | B200: 5 | C200: Обед | D200: закуска
D201: 1 блюдо
D202: 2 блюдо
D203: гарнир
D204: напиток
D205: хлеб бел.
D206: хлеб черн.
D209: итого | F209: =SUM(F200:F208) -> 0 | G209: =SUM(G200:G208) -> 0 | H209: 0 | I209: 0 | J209: 0 | L209: =SUM(L200:L208) -> 0
A210: =A193 -> 2 | B210: =B193 -> 5 | C210: Итого за день: | F210: =F199+F209 -> 500 | G210: =G199+G209 -> 24.01 | H210: 21.45 | I210: 87.02 | J210: 637.2 | L210: =L199+L209 -> 66.76
A211: 2 | B211: 6 | C211: Завтрак | D211: гор.блюдо | E211: Каша гречневая с овощами, мясным фаршем. | F211: 200 | G211: 26.1 | H211: 25.3 | I211: 38.6 | J211: 490 | K211: 2015
D212: хлеб | E212: Хлеб пшеничный | F212: 30 | G212: 2.25 | H212: 0.87 | I212: 15 | J212: 75 | K212: 1
D213: хлеб | E213: Хлеб ржаной (ржано-пшеничный) | F213: 30 | G213: 1.98 | H213: 0.33 | I213: 12.3 | J213: 62
D214: гор.напиток | E214: Компот из свежих фруктов | F214: 200 | G214: 0.2 | H214: 0.1 | I214: 17.2 | J214: 68 | K214: 631
D215: закуска | E215: Овощи свежие ( огурцы ) | F215: 60 | G215: 0.48 | H215: 0.06 | I215: 1.68 | J215: 9 | K215: 2015
D217: итого | F217: =SUM(F211:F216) -> 520 | G217: =SUM(G211:G216) -> 31.01 | H217: =SUM(H211:H216) -> 26.66 | I217: =SUM(I211:I216) -> 84.78 | J217: =SUM(J211:J216) -> 704 | L217: 66.76
A218: =A211 -> 2 | B218: 6 | C218: Обед | D218: закуска
D219: 1 блюдо
D220: 2 блюдо
D221: гарнир
D222: напиток
D223: хлеб бел.
D224: хлеб черн.
D227: итого | F227: =SUM(F218:F226) -> 0 | G227: =SUM(G218:G226) -> 0 | H227: 0 | I227: 0 | J227: 0 | L227: =SUM(L218:L226) -> 0
A228: =A211 -> 2 | B228: =B211 -> 6 | C228: Итого за день: | F228: =F217+F227 -> 520 | G228: =G217+G227 -> 31.01 | H228: 26.66 | I228: 84.78 | J228: 704 | L228: =L217+L227 -> 66.76
C229: Среднее значение за период: | F229: =(F23+F42+F61+F80+F98+F116+F135+F154+F173+F192)/(IF(F23=0,0,1)+IF(F42=0,0,1)+IF(F61=0,0,1)+IF(F80=0,0,1)+IF(F98=0,0,1)+IF(F116=0,0,1)+IF(F135=0,0,1)+IF(F154=0,0,1)+IF(F173=0,0,1)+IF(F192=0,0,1)) -> 526.9 | G229: =(G23+G42+G61+G80+G98+G116+G135+G154+G173+G192)/(IF(G23=0,0,1)+IF(G42=0,0,1)+IF(G61=0,0,1)+IF(G80=0,0,1)+IF(G98=0,0,1)+IF(G116=0,0,1)+IF(G135=0,0,1)+IF(G154=0,0,1)+IF(G173=0,0,1)+IF(G192=0,0,1)) -> 25.599 | H229: =(H23+H42+H61+H80+H98+H116+H135+H154+H173+H192)/(IF(H23=0,0,1)+IF(H42=0,0,1)+IF(H61=0,0,1)+IF(H80=0,0,1)+IF(H98=0,0,1)+IF(H116=0,0,1)+IF(H135=0,0,1)+IF(H154=0,0,1)+IF(H173=0,0,1)+IF(H192=0,0,1)) -> 20.579 | I229: =(I23+I42+I61+I80+I98+I116+I135+I154+I173+I192)/(IF(I23=0,0,1)+IF(I42=0,0,1)+IF(I61=0,0,1)+IF(I80=0,0,1)+IF(I98=0,0,1)+IF(I116=0,0,1)+IF(I135=0,0,1)+IF(I154=0,0,1)+IF(I173=0,0,1)+IF(I192=0,0,1)) -> 92.961 | J229: =(J23+J42+J61+J80+J98+J116+J135+J154+J173+J192)/(IF(J23=0,0,1)+IF(J42=0,0,1)+IF(J61=0,0,1)+IF(J80=0,0,1)+IF(J98=0,0,1)+IF(J116=0,0,1)+IF(J135=0,0,1)+IF(J154=0,0,1)+IF(J173=0,0,1)+IF(J192=0,0,1)) -> 667.16 | L229: =(L23+L42+L61+L80+L98+L116+L135+L154+L173+L192)/(IF(L23=0,0,1)+IF(L42=0,0,1)+IF(L61=0,0,1)+IF(L80=0,0,1)+IF(L98=0,0,1)+IF(L116=0,0,1)+IF(L135=0,0,1)+IF(L154=0,0,1)+IF(L173=0,0,1)+IF(L192=0,0,1)) -> 66.76
